bitfinex-derivatives/quotes_SOLF0:USTF0_20240930
["timestamp","ask_amount","ask_price","bid_price","bid_amount"]
[1727655571085,1.47422,158.75,158.69,3.1498]
[1727655571987,0.12502,158.75,158.72,3.1494]
[1727655572187,0.12502,158.75,158.67,12.09]
[1727655572387,3.27382,158.75,158.67,12.09]
[1727655572690,0.12502,158.75,158.7,3.1497]
[1727655572885,3.1491,158.74,158.7,3.1497]
[1727655573088,3.1491,158.74,158.69,3.1499]
[1727655573790,3.1491,158.74,158.7,3.1498]
[1727655574192,0.12502,158.75,158.67,12.09]
[1727655574395,0.12502,158.75,158.72,3.1494]
[1727655575390,0.12502,158.75,158.7,12.09]
[1727655575889,0.12502,158.75,158.72,3.1492]
[1727655576194,0.12502,158.75,158.7,12.09]
[1727655576394,0.12502,158.75,158.73,3.1492]
[1727655576787,0.12502,158.75,158.7,12.09]
[1727655576995,0.12502,158.75,158.72,3.1493]
[1727655577293,0.12502,158.75,158.67,12.09]
[1727655577488,3.1491,158.74,158.7,3.1496]
[1727655578290,3.1491,158.74,158.71,3.1495]
[1727655579194,0.12502,158.75,158.66,3.9677]
[1727655579398,0.12502,158.75,158.72,3.1492]
[1727655580097,0.12502,158.75,158.73,3.1492]
[1727655581491,0.12502,158.75,158.74,3.149]
[1727655582093,0.12502,158.81,158.74,15.2808604]
[1727655582291,0.12502,158.81,158.71,12.09]
[1727655582292,0.12502,158.81,158.78,12.09]
[1727655582992,0.12502,158.81,158.75,2.6445]
[1727655583505,0.12502,158.81,158.75,1.3415]
[1727655583703,0.12502,158.81,158.71,12.09]
[1727655584207,12.09,158.8,158.71,12.09]
[1727655584494,3.08759911,158.79,158.71,12.09]
[1727655584998,3.1484,158.77,158.73,3.1491]
[1727655585806,3.17642822,158.78,158.73,3.1491]
[1727655586999,3.1484,158.77,158.73,3.1491]
[1727655587704,3.1484,158.77,158.74,3.1489]
[1727655588205,3.17642822,158.78,158.72,3.1493]
[1727655588391,12.82963203,158.79,158.7,3.9263]
[1727655588702,12.82963203,158.78,158.7,3.9263]
[1727655588903,3.1487,158.76,158.72,3.1493]
[1727655590502,12.83067932,158.78,158.71,12.09]
[1727655590696,3.12851222,158.79,158.71,12.09]
[1727655590896,3.1484,158.77,158.73,3.149]
[1727655591108,3.1484,158.77,158.71,12.09]
[1727655591789,6.22386069,158.78,158.71,12.09]
[1727655592400,15.97802621,158.79,158.71,12.09]
[1727655592702,0.12502,158.81,158.75,12.09]
[1727655592904,0.12502,158.81,158.77,12.09]
[1727655593406,0.12502,158.81,158.79,3.1478]
[1727655593999,0.12502,158.81,158.77,3.1483]
[1727655594508,3.1479,158.8,158.77,3.1483]
[1727655594703,0.12502,158.81,158.77,3.1483]
[1727655595593,0.12502,158.81,158.76,3.9935]
[1727655596997,0.12502,158.81,158.78,3.148]
[1727655597904,0.12502,158.81,158.77,3.1483]
[1727655598498,3.1479,158.8,158.77,3.1483]
[1727655599196,0.12502,158.81,158.73,12.09]
[1727655599999,3.1481,158.79,158.75,3.1487]
[1727655600193,3.14229157,158.79,158.71,16.0546]
[1727655600394,12.09,158.78,158.66,12.09]
[1727655600600,12.09,158.76,158.66,12.09]
[1727655600810,3.07613806,158.79,158.71,12.09]
[1727655600998,3.1484,158.78,158.74,3.1488]
[1727655601801,0.6126,158.77,158.74,3.1488]
[1727655602423,3.761,158.77,158.74,3.1488]
[1727655602997,0.6126,158.77,158.74,3.1488]
[1727655603394,0.6126,158.77,158.73,12.09]
[1727655604097,0.6126,158.77,158.72,5.8523]
[1727655604302,3.1487,158.76,158.72,2.703]
[1727655604603,0.6126,158.77,158.72,2.703]
[1727655605002,0.6126,158.77,158.73,12.09]
[1727655605204,0.6126,158.77,158.76,3.1486]
[1727655605510,0.12502,158.81,158.75,12.09]
[1727655605710,0.12502,158.81,158.8,3.1478]
[1727655614611,0.12502,158.81,158.79,3.1479]
[1727655616413,0.12502,158.81,158.76,12.09]
[1727655616613,0.12502,158.81,158.8,3.1478]
[1727655617309,0.12502,158.81,158.79,3.1479]
[1727655617814,3.1479,158.8,158.77,3.1483]
[1727655618220,0.12502,158.81,158.74,12.09]
[1727655618411,0.12502,158.81,158.73,2.6647]
[1727655618808,3.1483,158.78,158.75,3.1487]
[1727655619607,3.1484,158.77,158.74,3.1489]
[1727655619811,0.12502,158.81,158.73,2.6647]
[1727655620016,3.1484,158.78,158.74,3.1489]
[1727655620220,3.11205368,158.77,158.72,1.3394]
[1727655620522,12.09,158.8,158.72,1.3394]
[1727655621018,3.1483,158.78,158.74,3.1489]
[1727655622128,3.1484,158.77,158.74,3.1489]
[1727655622520,3.1486,158.76,158.73,3.1491]
[1727655622925,3.1294573,158.76,158.7,1.3111]
[1727655623228,3.1486,158.76,158.72,3.1492]
[1727655623432,6.3438975,158.76,158.72,3.1492]
[1727655623627,3.1486,158.76,158.72,3.1492]
[1727655623927,3.1482,158.78,158.75,3.1486]
[1727655624112,3.1482,158.78,158.71,12.09]
[1727655624314,3.13796297,158.79,158.71,12.09]
[1727655624523,0.12502,158.81,158.71,12.09]
[1727655626136,0.12502,158.81,158.7,2.5861]
[1727655626137,0.12502,158.81,158.73,12.09]
[1727655627030,3.1478,158.8,158.77,3.1483]
[1727655627428,3.27262,158.81,158.77,3.1483]
[1727655627630,0.12502,158.81,158.76,12.09]
[1727655628736,0.12502,158.81,158.78,3.1481]
[1727655629929,0.12502,158.81,158.79,3.1479]
[1727655630846,0.12502,158.81,158.76,12.09]
[1727655631041,0.12502,158.81,158.78,3.1481]
[1727655634348,0.12502,158.81,158.75,3.1487]
[1727655634349,3.1481,158.79,158.75,3.1487]
[1727655634735,6.37208525,158.79,158.75,3.1487]
[1727655634942,3.1481,158.79,158.75,3.1487]
[1727655635447,3.0925246,158.79,158.73,12.09]
[1727655635652,3.1483,158.78,158.74,3.1488]
[1727655635952,3.16938099,158.77,158.7,2.5861]
[1727655636148,3.1487,158.76,158.72,3.1493]
[1727655636345,3.1487,158.76,158.7,2.5861]
[1727655636542,3.1487,158.76,158.73,3.149]
[1727655636850,12.82279429,158.79,158.71,12.09]
[1727655637051,3.27272,158.81,158.76,12.09]
[1727655637355,0.12502,158.81,158.76,12.09]
[1727655637550,3.1479,158.8,158.76,12.09]
[1727655637850,3.1479,158.8,158.76,3.1485]
[1727655638250,3.148,158.79,158.76,3.1485]
[1727655638556,0.12502,158.81,158.76,3.1485]
[1727655640254,3.1478,158.8,158.76,3.1485]
[1727655640452,0.12502,158.81,158.77,3.1483]
[1727655640656,0.12502,158.81,158.75,12.09]
[1727655641352,12.95823035,158.81,158.78,12.09]
[1727655641548,0.12502,158.87,158.8,12.09]
[1727655641741,0.12502,158.87,158.86,15.2366]
[1727655643550,0.12502,158.87,158.86,3.1466]
[1727655644151,3.27042,158.93,158.89,3.1459]
[1727655644457,0.12502,158.93,158.87,12.09]
[1727655644944,3.20190874,158.93,158.87,12.09]
[1727655645150,0.12502,158.93,158.86,3.1465]
[1727655645453,0.12502,158.93,158.85,12.09]
[1727655645651,3.08066561,158.92,158.85,12.09]
[1727655646244,3.1457,158.91,158.87,3.1463]
[1727655646859,0.12502,158.93,158.85,12.09]
[1727655647154,3.1454,158.92,158.87,12.09]
[1727655647862,3.1454,158.92,158.88,3.146]
[1727655648163,3.1456,158.91,158.88,3.146]
[1727655648456,0.12502,158.93,158.9,3.1457]
[1727655648658,0.12502,158.93,158.89,12.09]
[1727655648959,0.12502,158.99,158.92,3.1454]
[1727655649147,3.1443,158.98,158.93,12.09]
[1727655649555,3.1446,158.96,158.91,12.09]
[1727655649958,3.22987749,158.99,158.92,3.1454]
[1727655650158,12.09,158.97,158.89,1.2986]
[1727655651054,12.09,158.97,158.88,1.324]
[1727655651355,3.1449,158.95,158.89,3.1459]
[1727655651558,12.09,158.95,158.87,0.12502]
[1727655652156,3.1455,158.92,158.88,3.1461]
[1727655652856,3.1456,158.91,158.87,3.27132]
[1727655654156,3.13625818,158.91,158.87,0.12502]
[1727655654360,12.09,158.93,158.87,0.12502]
[1727655654566,3.1461,158.89,158.87,0.12502]
[1727655655455,3.1462,158.88,158.87,0.12502]
[1727655655662,6.34338132,158.88,158.87,0.12502]
[1727655656057,3.1462,158.88,158.87,0.12502]
[1727655658861,3.1459,158.9,158.87,0.12502]
[1727655659063,12.09,158.95,158.87,0.12502]
[1727655659757,71.8669,158.96,158.87,0.12502]
[1727655659958,71.8669,158.96,158.88,12.09]
[1727655660555,12.09,158.95,158.87,0.12502]
[1727655661461,3.1456,158.92,158.88,3.1461]
[1727655665968,3.1451,158.94,158.9,3.1456]
[1727655666172,69.2532,158.96,158.9,3.1456]
[1727655667267,3.1451,158.94,158.9,3.1456]
[1727655667462,3.1451,158.94,158.88,12.09]
[1727655667463,68.0,158.96,158.91,12.09]
[1727655667664,3.22987749,158.99,158.91,12.09]
[1727655668070,3.1448,158.95,158.91,12.09]
[1727655669169,3.22987749,158.99,158.91,12.09]
[1727655669376,0.12502,158.99,158.93,12.09]
[1727655669578,15.3836973,158.99,158.9,13.3583]
[1727655669868,15.3836973,158.99,158.91,3.1455]
[1727655670466,3.1449,158.95,158.91,3.1455]
[1727655670662,15.3836973,158.99,158.9,1.2683]
[1727655670864,12.09,158.97,158.89,3.1459]
[1727655671070,3.1454,158.92,158.88,1.2738]
[1727655671272,3.1454,158.92,158.87,0.12502]
[1727655671678,3.1454,158.92,158.88,3.1461]
[1727655672574,12.09,158.97,158.87,0.12502]
[1727655672870,3.1453,158.93,158.89,3.1459]
[1727655673064,12.09,158.97,158.87,0.12502]
[1727655673269,3.1456,158.91,158.87,0.12502]
[1727655673681,3.1456,158.91,158.88,3.1462]
[1727655673877,3.146,158.89,158.87,0.12502]
[1727655674083,12.09,158.92,158.87,0.12502]
[1727655674376,3.1462,158.88,158.87,0.12502]
[1727655674581,6.22158757,158.88,158.87,0.12502]
[1727655675071,3.1469,158.85,158.81,3.27252]
[1727655675271,3.07538757,158.88,158.81,0.12502]
[1727655675679,3.1465,158.87,158.83,3.1471]
[1727655675871,2.616,158.89,158.81,12.21502]
[1727655676087,3.16446993,158.91,158.81,12.21502]
[1727655676275,3.1462,158.89,158.84,3.147]
[1727655676477,13.50042,158.93,158.84,3.147]
[1727655677080,3.1463,158.88,158.83,3.1471]
[1727655677783,3.1466,158.86,158.82,3.1473]
[1727655678278,15.27341458,158.9,158.81,0.12502]
[1727655678279,12.09,158.88,158.81,0.12502]
[1727655678782,3.147,158.84,158.81,0.12502]
[1727655678968,12.09,158.86,158.81,0.12502]
[1727655679373,3.1471,158.84,158.81,0.12502]
[1727655680867,3.1466,158.86,158.82,3.1473]
[1727655682580,3.1465,158.87,158.83,15.237]
[1727655682880,13.4407,158.92,158.83,12.09]
[1727655683084,3.1459,158.9,158.86,3.1466]
[1727655684875,3.1457,158.91,158.87,3.1462]
[1727655685079,2.5758,158.96,158.87,12.09]
[1727655686282,3.1456,158.92,158.88,3.1461]
[1727655686885,3.1449,158.95,158.91,3.1454]
[1727655687186,69.2918,158.97,158.89,12.09]
[1727655687386,3.1447,158.96,158.92,3.1454]
[1727655687589,69.2918,158.97,158.89,12.09]
[1727655687981,69.2918,158.97,158.9,3.1457]
[1727655687982,3.1451,158.94,158.9,3.1457]
[1727655688178,69.2918,158.97,158.9,3.1457]
[1727655688695,69.2918,158.97,158.89,12.09]
[1727655688880,12.09,158.96,158.85,12.09]
[1727655689085,69.2918,158.97,158.85,12.09]
[1727655689086,12.09,158.94,158.85,12.09]
[1727655689281,12.09,158.94,158.84,1.2633]
[1727655689593,1.36592,158.93,158.84,1.2633]
[1727655689794,2.70052,158.93,158.84,1.2633]
[1727655690690,1.36592,158.93,158.85,12.09]
[1727655690892,0.12502,158.93,158.85,12.09]
[1727655691085,3.1454,158.92,158.88,3.1462]
[1727655691888,3.1457,158.91,158.87,3.1463]
[1727655692396,3.11544521,158.91,158.84,1.2633]
[1727655692589,3.1459,158.9,158.86,3.1465]
[1727655692899,0.12502,158.93,158.86,3.1465]
[1727655692900,3.09907629,158.91,158.86,3.1465]
[1727655693096,0.12502,158.93,158.86,3.1465]
[1727655693487,0.12502,158.93,158.84,1.2633]
[1727655693488,3.1463,158.88,158.84,3.1469]
[1727655693990,3.1463,158.88,158.85,3.1468]
[1727655694189,3.146,158.89,158.85,3.1468]
[1727655694593,3.146,158.89,158.86,3.1466]
[1727655696399,3.11071975,158.9,158.83,1.2617]
[1727655696596,3.1464,158.87,158.84,3.1469]
[1727655698590,3.1467,158.86,158.81,0.12502]
[1727655699291,3.1467,158.86,158.82,3.1472]
[1727655699694,3.19886371,158.88,158.81,0.12502]
[1727655699892,19.34,158.87,158.81,0.12502]
[1727655700095,1.3363,158.86,158.81,0.12502]
[1727655700588,1.3342,158.85,158.81,0.12502]
[1727655700899,19.34,158.84,158.75,3.27372]
[1727655701498,3.1479,158.8,158.76,3.1485]
[1727655701898,3.1484,158.78,158.75,0.12502]
[1727655702092,3.21143235,158.77,158.75,0.12502]
[1727655702287,1.2429,158.8,158.75,0.12502]
[1727655704099,3.1486,158.76,158.75,0.12502]
[1727655704402,3.18908786,158.76,158.69,0.12502]
[1727655704603,19.34,158.79,158.69,0.12502]
[1727655704898,3.1487,158.76,158.71,3.1495]
[1727655705105,3.20043132,158.75,158.71,3.1495]
[1727655705503,6.34923132,158.75,158.71,3.1495]
[1727655705692,3.1488,158.75,158.71,3.1495]
[1727655706294,6.22244898,158.75,158.71,3.1495]
[1727655707997,20.6827,158.79,158.69,0.12502]
[1727655708304,3.1484,158.77,158.72,3.1492]
[1727655708894,3.1487,158.76,158.71,3.1495]
[1727655709094,23.87450566,158.79,158.69,0.12502]
[1727655709291,1.2669,158.78,158.69,0.12502]
[1727655709702,3.1491,158.74,158.69,3.27482]
[1727655710701,1.2669,158.78,158.69,0.12502]
[1727655710702,3.1495,158.72,158.69,0.12502]
[1727655710903,19.34,158.76,158.69,0.12502]
[1727655711209,3.1495,158.72,158.69,0.12502]
[1727655712605,3.08210894,158.71,158.69,0.12502]
[1727655715605,3.1492,158.73,158.69,3.27492]
[1727655716207,3.149,158.74,158.7,3.1496]
[1727655716401,12.11,158.76,158.69,0.12502]
[1727655716797,3.1488,158.75,158.71,3.1494]
[1727655717306,12.11,158.76,158.69,0.12502]
[1727655717697,15.2586,158.76,158.72,3.1494]
[1727655718205,3.1486,158.76,158.72,3.1494]
[1727655718404,4.4153,158.78,158.73,3.1491]
[1727655718608,1.2669,158.78,158.73,3.1491]
[1727655718803,1.2669,158.78,158.69,0.12502]
[1727655720405,3.1486,158.76,158.72,3.1492]
[1727655722007,3.1489,158.75,158.71,3.1494]
[1727655722410,3.1486,158.76,158.72,3.1493]
[1727655724709,12.11,158.77,158.69,0.12502]
[1727655725301,1.2669,158.78,158.73,3.1492]
[1727655725501,1.2669,158.78,158.69,0.12502]
[1727655725906,1.2669,158.78,158.72,3.1492]
[1727655725907,3.1487,158.76,158.72,3.1492]
[1727655726104,1.2669,158.78,158.69,0.12502]
[1727655726315,12.11,158.75,158.69,0.12502]
[1727655726614,3.1491,158.74,158.7,3.1497]
[1727655727915,3.1492,158.73,158.69,0.12502]
[1727655728115,12.11,158.73,158.69,0.12502]
[1727655728716,12.11,158.75,158.69,0.12502]
[1727655729515,3.1493,158.73,158.69,3.27492]
[1727655730718,15.2588,158.75,158.69,0.12502]
[1727655730917,1.2669,158.78,158.69,0.12502]
[1727655731224,6.33980566,158.79,158.76,3.1486]
[1727655731716,6.33980566,158.79,158.72,12.11]
[1727655732019,6.33980566,158.79,158.75,3.1486]
[1727655732521,3.1478,158.8,158.76,3.1484]
[1727655732714,92.36993566,158.81,158.72,12.11]
[1727655732910,92.36993566,158.81,158.74,12.11]
[1727655733107,92.36993566,158.81,158.79,3.1479]
[1727655733108,0.12502,158.81,158.79,3.1479]
[1727655734414,0.12502,158.81,158.77,3.1482]
[1727655736129,3.27262,158.81,158.77,3.1482]
[1727655736425,12.23502,158.81,158.7,12.11]
[1727655736814,12.23502,158.81,158.7,15.18091209]
[1727655737024,12.23502,158.81,158.7,12.11]
[1727655737221,12.11,158.79,158.69,0.12502]
[1727655737426,15.25114936,158.79,158.69,0.12502]
[1727655737630,12.11,158.77,158.69,0.12502]
[1727655738019,15.2735119,158.77,158.69,0.12502]
[1727655738421,12.11,158.74,158.69,0.12502]
[1727655739430,12.11,158.72,158.69,0.12502]
[1727655739826,15.2594,158.72,158.69,0.12502]
[1727655740332,3.1494,158.72,158.69,0.12502]
[1727655741235,3.1493,158.73,158.69,0.12502]
[1727655741532,12.11,158.74,158.69,0.12502]
[1727655742031,3.1495,158.72,158.69,0.12502]
[1727655745233,12.11,158.74,158.69,0.12502]
[1727655745735,3.1495,158.72,158.69,0.12502]
[1727655747333,3.1498,158.7,158.69,0.12502]
[1727655747523,6.29777377,158.7,158.69,0.12502]
[1727655750539,3.1497,158.71,158.69,0.12502]
[1727655751224,3.14679513,158.7,158.69,0.12502]
[1727655752129,12.11,158.72,158.69,0.12502]
[1727655752334,3.1498,158.7,158.69,0.12502]
[1727655752535,18.35301388,158.7,158.69,0.12502]
[1727655756431,15.20321388,158.7,158.63,0.12502]
[1727655756736,15.2603,158.68,158.63,0.12502]
[1727655757333,3.1505,158.67,158.63,0.12502]
[1727655757638,12.11,158.68,158.63,0.12502]
[1727655758333,12.11,158.68,158.63,3.27612]
[1727655759038,3.1504,158.67,158.63,3.27612]
[1727655760536,12.11,158.66,158.63,0.12502]
[1727655760737,12.11,158.64,158.63,0.12502]
[1727655761231,15.261,158.64,158.63,0.12502]
[1727655762243,1.3602,158.67,158.63,0.12502]
[1727655762440,3.1506,158.66,158.63,0.12502]
[1727655762639,13.4702,158.67,158.63,0.12502]
[1727655763147,3.1509,158.65,158.63,0.12502]
[1727655763743,13.4702,158.67,158.63,0.12502]
[1727655763935,3.1506,158.66,158.63,0.12502]
[1727655764530,3.1508,158.65,158.63,0.12502]
[1727655765338,3.1506,158.66,158.63,3.27612]
[1727655765548,12.11,158.67,158.63,3.27612]
[1727655765746,13.3578,158.69,158.63,3.27612]
[1727655766233,3.1505,158.67,158.63,3.27612]
[1727655766437,13.3578,158.69,158.63,0.12502]
[1727655767135,3.1505,158.67,158.63,0.12502]
[1727655768049,3.1506,158.66,158.63,0.12502]
[1727655769446,3.151,158.64,158.63,0.12502]
[1727655770145,15.261,158.64,158.63,0.12502]
[1727655772245,3.1516,158.61,158.57,3.27722]
[1727655772844,3.1516,158.61,158.58,3.1521]
[1727655772845,6.36663318,158.61,158.58,3.1521]
[1727655774550,3.21503318,158.61,158.58,3.1521]
[1727655775043,12.11,158.64,158.58,3.1521]
[1727655775440,12.11,158.64,158.57,3.27732]
[1727655775837,3.1517,158.61,158.57,3.27732]
[1727655776042,3.16971126,158.6,158.57,3.27732]
[1727655777245,3.16971126,158.6,158.57,0.12502]
[1727655777448,6.32338807,158.59,158.57,0.12502]
[1727655777647,3.1521,158.59,158.57,0.12502]
[1727655778151,6.283337,158.59,158.57,0.12502]
[1727655780849,15.241237,158.59,158.57,0.12502]
[1727655781055,3.1521,158.58,158.57,0.12502]
[1727655782846,15.241237,158.59,158.51,1.36702]
[1727655782847,3.1532,158.53,158.51,0.12502]
[1727655783056,12.11,158.55,158.51,0.12502]
[1727655783355,12.11,158.52,158.51,0.12502]
[1727655783657,12.11,158.52,158.45,1.49852]
[1727655783658,3.1538,158.5,158.45,1.49852]
[1727655783951,12.11,158.48,158.45,0.12502]
[1727655784453,12.11,158.46,158.39,0.12502]
[1727655784661,12.11,158.44,158.39,0.12502]
[1727655784950,15.265,158.44,158.39,0.12502]
[1727655785145,12.11,158.46,158.39,0.12502]
[1727655785344,12.11,158.46,158.41,3.1555]
[1727655785552,15.29057681,158.46,158.41,3.1555]
[1727655785752,18.44527681,158.46,158.39,0.12502]
[1727655785957,18.44527681,158.46,158.4,3.1556]
[1727655786151,12.11,158.46,158.39,0.12502]
[1727655786459,15.243567,158.46,158.4,3.1557]
[1727655786754,15.243567,158.46,158.39,0.12502]
[1727655786946,12.11,158.5,158.39,12.23502]
[1727655787150,12.11,158.5,158.4,2.6425]
[1727655787350,3.1545,158.47,158.4,2.6425]
[1727655787745,3.1545,158.47,158.42,3.1552]
[1727655787945,3.1545,158.47,158.4,2.6425]
[1727655787946,3.13227125,158.47,158.4,2.6425]
[1727655788449,3.1542,158.48,158.43,3.1551]
[1727655788646,12.11,158.48,158.4,2.6425]
[1727655789048,12.11,158.48,158.41,3.1555]
[1727655789254,3.1547,158.46,158.41,3.1555]
[1727655789950,12.11,158.48,158.4,2.6425]
[1727655790152,3.1544,158.47,158.42,3.1552]
[1727655792956,15.2642,158.48,158.43,3.1551]
[1727655793154,15.2642,158.48,158.4,2.6425]
[1727655793155,0.12502,158.51,158.42,15.33994085]
[1727655793363,3.26530165,158.51,158.44,12.11]
[1727655793551,0.12502,158.51,158.45,1.3355]
[1727655793869,0.12502,158.57,158.46,12.11]
[1727655794053,3.1526,158.56,158.52,3.1531]
[1727655794369,0.12502,158.57,158.48,1.2926]
[1727655794669,3.27742,158.57,158.48,13.4026]
[1727655794857,0.12502,158.57,158.48,13.4026]
[1727655795567,3.1526,158.56,158.52,3.1532]
[1727655795859,0.12502,158.57,158.48,13.4026]
[1727655796063,0.12502,158.57,158.53,3.1531]
[1727655796064,3.27752,158.57,158.53,3.1531]
[1727655796365,0.12502,158.57,158.5,12.11]
[1727655796565,0.12502,158.57,158.53,12.11]
[1727655796759,0.12502,158.57,158.56,3.1525]
[1727655797157,68.30502,158.63,158.6,3.1516]
[1727655797354,0.12502,158.63,158.6,3.1516]
[1727655797565,0.12502,158.63,158.56,1.2568]
[1727655798659,0.12502,158.63,158.58,3.1521]
[1727655798865,0.12502,158.63,158.56,1.2568]
[1727655799065,0.12502,158.63,158.56,2.5656]
[1727655799266,0.12502,158.63,158.6,3.1517]
[1727655801559,0.12502,158.63,158.56,2.5656]
[1727655801760,3.27632,158.63,158.58,3.152]
[1727655801962,3.27632,158.63,158.56,2.5656]
[1727655801963,12.23502,158.63,158.56,2.5656]
[1727655802165,3.1517,158.61,158.57,3.1523]
[1727655802369,12.23502,158.63,158.56,2.5656]
[1727655802876,12.11,158.61,158.52,1.3708]
[1727655803371,12.23502,158.63,158.52,13.4808]
[1727655803963,12.11,158.61,158.52,1.3708]
[1727655804363,3.1524,158.57,158.53,3.153]
[1727655804564,3.11093469,158.57,158.52,1.3708]
[1727655804766,12.11,158.59,158.52,1.3708]
[1727655805272,12.11,158.56,158.51,0.12502]
[1727655805473,3.22037248,158.55,158.52,3.1533]
[1727655805670,3.22037248,158.55,158.51,0.12502]
[1727655806061,3.1526,158.56,158.52,3.1532]
[1727655806461,3.13600883,158.57,158.52,3.1532]
[1727655806672,12.11,158.56,158.51,3.27852]
[1727655806867,15.22991864,158.56,158.51,0.12502]
[1727655807075,12.11,158.54,158.51,0.12502]
[1727655807770,3.16408778,158.53,158.51,0.12502]
[1727655808356,12.11,158.54,158.51,0.12502]
[1727655808866,15.2633,158.52,158.51,0.12502]
[1727655809068,15.30847661,158.52,158.46,3.1545]
[1727655809367,15.30847661,158.52,158.43,3.9637]
[1727655809773,3.154,158.49,158.45,3.27972]
[1727655810157,6.28519784,158.5,158.46,3.1545]
[1727655810363,12.11,158.52,158.45,0.12502]
[1727655810578,3.11245984,158.51,158.45,0.12502]
[1727655810768,3.1533,158.53,158.48,3.154]
[1727655811075,12.23502,158.57,158.46,12.11]
[1727655811371,12.23502,158.57,158.48,12.11]
[1727655811372,3.1526,158.56,158.48,12.11]
[1727655811871,3.3043941,158.57,158.48,12.11]
[1727655812073,3.3043941,158.57,158.45,0.12502]
[1727655812074,12.11,158.54,158.45,0.12502]
[1727655812370,15.32882826,158.54,158.45,0.12502]
[1727655812874,3.1534,158.52,158.48,3.154]
[1727655813072,15.32882826,158.54,158.45,0.12502]
[1727655813372,12.11,158.54,158.45,12.23502]
[1727655813673,3.153,158.54,158.5,3.1536]
[1727655813876,6.23293164,158.54,158.5,3.1536]
[1727655815373,3.1534,158.52,158.45,12.23502]
[1727655815577,3.1534,158.52,158.45,0.12502]
[1727655816378,3.1534,158.52,158.48,3.1539]
[1727655817377,12.11,158.51,158.45,0.12502]
[1727655817580,15.2637,158.51,158.47,3.1542]
[1727655817974,15.2637,158.51,158.45,0.12502]
[1727655820376,15.2637,158.51,158.48,3.1541]
[1727655822185,12.11,158.51,158.45,0.12502]
[1727655822399,3.1538,158.5,158.45,0.12502]
[1727655823279,12.11,158.51,158.47,3.1543]
[1727655823581,1.2478,158.53,158.45,0.12502]
[1727655824280,3.1534,158.52,158.48,3.1539]
[1727655824487,3.07993164,158.54,158.45,12.23502]
[1727655824667,12.11,158.56,158.45,12.23502]
[1727655824981,3.1531,158.54,158.5,3.1536]
[1727655825181,6.37185257,158.54,158.5,3.1536]
[1727655825678,12.11,158.56,158.49,3.1539]
[1727655825978,3.1535,158.52,158.49,3.1539]
[1727655826283,12.11,158.51,158.45,0.12502]
[1727655826580,3.1539,158.5,158.45,0.12502]
[1727655826975,12.11,158.51,158.47,3.1542]
[1727655827171,15.2636,158.51,158.47,3.1542]
[1727655830790,12.11,158.51,158.45,0.12502]
[1727655830977,3.1535,158.52,158.48,3.154]
[1727655834185,13.4839,158.55,158.45,12.23502]
[1727655834590,6.23978819,158.56,158.52,3.1532]
[1727655834782,6.23978819,158.56,158.47,12.11]
[1727655835284,0.12502,158.57,158.51,12.11]
[1727655835489,0.12502,158.57,158.53,12.11]
[1727655836384,0.12502,158.57,158.56,3.1525]
[1727655838188,0.12502,158.63,158.55,12.11]
[1727655838389,3.27622,158.63,158.59,3.1519]
[1727655839391,0.12502,158.63,158.55,12.11]